[Event "WWRR O55-Group 2024"]
[Site "Wachtebeke"]
[Date "2024.02.14"]
[Round "5.1"]
[White "Motwani, Paul"]
[Black "Coste, Thierry"]
[Result "1-0"]
[ECO "B27"]
[WhiteElo "2421"]
[BlackElo "2055"]
[Annotator "TA"]
[PlyCount "99"]
[EventDate "2024.02.12"]
[EventType "swiss"]
[EventCountry "BEL"]
[SourceTitle "playchess.com"]
[Source "ChessBase"]
[SourceQuality "1"]
[TimeControl "40/5400+30:900+30"]

{[%evp 9,99,-14,18,10,45,49,61,40,52,27,78,47,62,33,68,48,99,67,67,70,86,59,155,89,66,33,38,31,99,54,99,97,112,56,52,54,60,6,48,41,64,48,109,105,142,155,154,104,139,89,108,89,119,98,133,94,134,87,116,107,106,101,105,108,117,89,114,100,125,49,119,95,104,95,237,218,304,308,304,299,458,476,545,508,573,475,747,741,1031,1005,1154,1125]} 1. e4 {[%emt 0:00:04]} c5 {[%emt 0:00:07]} 2. Nf3 {[%emt 0:00:19]} g6 {[%emt 0:00:27]} 3. c3 {[%emt 0:00:28]} Bg7 {[%emt 0:00:34]} 4. d4 {[%emt 0:00:45]} cxd4 {[%emt 0:00:25]} 5. Bc4 {[%emt 0:08:05]} d6 {[%emt 0:01:40]} 6. cxd4 {[%emt 0:03:30]} e6 {[%emt 0:03:49]} 7. Nc3 {[%emt 0:03:01]} Ne7 {[%emt 0:02:44]} 8. O-O {[%emt 0:07:17] White is slightly better.} O-O {[%emt 0:00:32]} 9. Bb3 {[%emt 0:06:13]} b6 {[%emt 0:04:53]} (9... Nbc6 $11 {keeps the balance.}) 10. Be3 {[%emt 0:07:46]} Bb7 {[%emt 0:05:53]} 11. Rc1 {[%emt 0:06:54]} a6 {[%emt 0:02:06]} 12. Qd2 {[%emt 0:06:01]} Re8 {[%emt 0:06:25]} (12... b5 $14) 13. Bg5 {[%emt 0:03:51]} Nd7 {[%emt 0:04:25]} 14. Qf4 {[%emt 0:02:15][%cal Of1d1]} Qb8 {[%emt 0:04:49]} 15. Qh4 {[%emt 0:02:51]} Nc8 {[%emt 0:06:53]} ({Black should play} 15... Nc6 $14) 16. Rfd1 {[%emt 0:01:56]} (16. Bh6 $142 {Bxg7 is the strong threat.} f6 17. a4) 16... b5 $16 {[%emt 0:08:04]} 17. a3 {[%emt 0:06:53]} Ncb6 {[%emt 0:00:54]} 18. Bh6 {[%emt 0:02:21]} Nf8 {[%emt 0:04:54]} ({Black should try} 18... Qd8 $14 19. Ng5 Nf8) 19. Bf4 {[%emt 0:05:43]} Nc8 {[%emt 0:06:17]} 20. Qg3 {[%emt 0:02:38] White has more active pieces. The black rooks are passive.} Rd8 {[%emt 0:01:44]} 21. Bc2 {[%emt 0:04:12]} (21. d5 $16 {Threatens to win with dxe6.} e5 22. Be3) 21... Nb6 $14 {[%emt 0:02:01]} 22. Bd3 {[%emt 0:02:10]} Rd7 {[%emt 0:08:06]} 23. Ne2 {[%emt 0:04:02]} (23. b3 $14) 23... Qd8 {[%emt 0:01:12][%cal Oe6e5]} 24. Bd2 {[%emt 0:02:05]} Nc8 {[%emt 0:03:05]} 25. h4 {[%emt 0:01:26][%cal Oh4h5]} Qb6 {[%emt 0:02:38] [#]} (25... h5 $14) 26. h5 $1 $16 {[%emt 0:01:11][%mdl 512]} Na7 {[%emt 0:02:29]} (26... Ne7 27. h6) 27. Be3 {[%emt 0:02:11]} Qd8 {[%emt 0:00:32]} 28. h6 {[%emt 0:01:38]} ({Better is} 28. Bg5 Qe8 29. h6) 28... Bh8 {[%emt 0:00:25]} 29. Nd2 {[%emt 0:01:01]} (29. Bg5 $142 f6 30. Be3) 29... Nc8 {[%emt 0:07:24]} 30. Nb3 {[%emt 0:01:09]} Ne7 {[%emt 0:00:27]} 31. f3 {[%emt 0:00:36] Black is weak on the dark squares} Rb8 {[%emt 0:00:25]} 32. Qe1 {[%emt 0:01:38]} Ba8 {[%emt 0:01:34]} 33. Qa5 {[%emt 0:01:05]} (33. Bg5 $142) 33... Bb7 {[%emt 0:00:57]} 34. Qxd8 {[%emt 0:00:17]} Rbxd8 {[%emt 0:00:31]} 35. Na5 {[%emt 0:00:24]} Ba8 {[%emt 0:00:08]} 36. g4 {[%emt 0:02:16]} Rb8 {[%emt 0:02:56]} 37. Rc2 {[%emt 0:00:28]} f6 {[%emt 0:02:18]} 38. Rdc1 {[%emt 0:00:57]} Kf7 {[%emt 0:00:15]} 39. Nc3 {[%emt 0:00:58]} (39. g5 $16) 39... g5 {[%emt 0:00:53]} (39... d5 $14) 40. Na2 {[%emt 0:00:11] aiming for Nb4.} d5 {[%emt 0:01:36]} 41. Nb4 $36 {[%emt 0:05:26][%mdl 2048] White is on the roll.} Rb6 {[%emt 0:01:13] Loses the game.} (41... dxe4 $16 {was necessary.} 42. fxe4 Rbd8) 42. Nb3 {[%emt 0:01:42]} Ra7 {[%emt 0:03:03]} 43. Rc7 {[%emt 0:01:35]} Rxc7 {[%emt 0:02:12]} 44. Rxc7 {[%emt 0:00:07]} Bc6 {[%emt 0:06:46]} (44... dxe4 $142 45. Bxe4 (45. fxe4 f5 $18) 45... Bxe4) 45. Ra7 $18 {[%emt 0:04:13] White is clearly winning.} Nfg6 {[%emt 0:03:52]} 46. Nc5 {[%emt 0:01:54]} Nf4 {[%emt 0:00:45]} 47. Bf1 {[%emt 0:01:11]} f5 {[%emt 0:00:35]} (47... Nfg6 $142 48. Ncxa6 (48. Nbxa6 Kg8 $18) 48... Nf4) 48. e5 {[%emt 0:00:43]} (48. Nbxa6 dxe4 49. fxe4 Bxe4 50. Nxe4 fxe4 $18) 48... Be8 {[%emt 0:00:33]} 49. gxf5 {[%emt 0:00:27]} exf5 {[%emt 0:00:14]} 50. Bxf4 {[%emt 0:00:18] Weighted Error Value: White=0.25 (precise) /Black=0.35.  Mistake:       	White=7     	Black=9      Inaccurate:     	White=6     	Black=12     OK:         	White=9     	Black=6      Best:        	White=1     	Black=4} 1-0

[Event "WWRR O55-Group 2024"]
[Site "Wachtebeke"]
[Date "2024.02.14"]
[Round "5.2"]
[White "DeBuck, Valere"]
[Black "Versporten, Wim"]
[Result "1/2-1/2"]
[ECO "B07"]
[WhiteElo "1812"]
[BlackElo "1942"]
[Annotator "NA RC"]
[PlyCount "49"]
[EventDate "2024.02.12"]
[EventType "swiss"]
[EventCountry "BEL"]
[SourceTitle "playchess.com"]
[Source "ChessBase"]
[SourceQuality "1"]
[TimeControl "40/5400+30:900+30"]

1. d4 {[%emt 0:00:19]} Nf6 {[%emt 0:00:05]} 2. g3 {[%emt 0:00:19]} d6 {[%emt 0:00:10]} 3. Bg2 {[%emt 0:00:11]} Nbd7 {[%emt 0:00:15]} 4. e4 {[%emt 0:03:33]} e5 {[%emt 0:00:36]} 5. Ne2 {[%emt 0:00:27]} Be7 {[%emt 0:01:03]} 6. O-O {[%emt 0:00:17]} O-O {[%emt 0:00:30]} 7. h3 {[%emt 0:01:30]} Re8 {[%emt 0:04:58]} 8. Nbc3 {[%emt 0:03:29]} c6 {[%emt 0:03:43]} 9. a4 {[%emt 0:01:51] B07: Pirc Defence: Miscellaneous Systems.} a5 {[%emt 0:01:43]} 10. Be3 {[%emt 0:00:21]} Bf8 {[%emt 0:02:56]} 11. d5 {[%emt 0:04:27]} Qc7 {[%emt 0:10:45]} 12. g4 {[%emt 0:05:58]} Nb8 {[%emt 0:03:50]} 13. Ng3 {[%emt 0:02:18]} Nfd7 {[%emt 0:04:42]} 14. Qd2 {[%emt 0:02:44]} Na6 {[%emt 0:01:26]} 15. Nf5 {[%emt 0:07:45]} Ndc5 {[%emt 0:00:50]} 16. b3 {[%emt 0:02:27]} Bxf5 {[%emt 0:03:01]} 17. exf5 {[%emt 0:04:23]} Be7 {[%emt 0:01:01]} 18. Bg5 {[%emt 0:05:38]} Bxg5 {[%emt 0:06:23]} 19. Qxg5 {[%emt 0:00:15]} f6 {[%emt 0:00:05]} 20. Qd2 {[%emt 0:00:45]} Nb4 {[%emt 0:00:05]} 21. Rad1 {[%emt 0:04:34]} Rad8 {[%emt 0:00:30]} 22. Qe2 {[%emt 0:12:09]} Re7 $14 {[%emt 0:12:48]} 23. Rd2 {[%emt 0:00:18]} Ree8 {[%emt 0:02:44]} 24. Rfd1 {[%emt 0:01:04]} Kf8 {[%emt 0:01:31]} 25. Qc4 {[%emt 0:11:22]} 1/2-1/2

[Event "WWRR O55-Group 2024"]
[Site "Wachtebeke"]
[Date "2024.02.15"]
[Round "6.1"]
[White "Motwani, Paul"]
[Black "DeBuck, Valere"]
[Result "1-0"]
[ECO "B30"]
[WhiteElo "2421"]
[BlackElo "1812"]
[Annotator "TA"]
[PlyCount "57"]
[EventDate "2024.02.12"]
[EventType "swiss"]
[EventCountry "BEL"]
[SourceTitle "playchess.com"]
[Source "ChessBase"]
[SourceQuality "1"]
[TimeControl "40/5400+30:900+30"]

{[%evp 9,57,30,35,27,86,78,80,67,73,72,90,81,90,81,58,25,25,21,6,25,54,39,60,35,68,48,156,111,271,287,342,310,815,804,892,700,29977,29978,29977,29979,29978,29980,29980,29981,29981,29982,29982,29983,29983,29984]} 1. e4 {[%emt 0:19:25]} c5 {[%emt 0:00:29]} 2. Nf3 {[%emt 0:00:11]} Nc6 {[%emt 0:00:16]} 3. Bb5 {[%emt 0:00:14]} Nd4 {[%emt 0:00:39]} 4. Nxd4 {[%emt 0:04:31]} cxd4 {[%emt 0:00:07]} 5. O-O {[%emt 0:05:40]} e6 {[%emt 0:06:32]} 6. c3 {[%emt 0:02:21]} Qb6 {[%emt 0:03:50]} (6... Bc5 $11) 7. a4 $16 {[%emt 0:04:34][%cal Ba2a4,Ba4a5][%mdl 32]} a6 {[%emt 0:01:21]} 8. Be2 {[%emt 0:01:55] White is better.} Nf6 {[%emt 0:00:20]} 9. a5 {[%emt 0:04:44]} Qa7 {[%emt 0:00:16]} 10. d3 {[%emt 0:08:18]} d5 {[%emt 0:05:23]} 11. cxd4 {[%emt 0:04:34]} Qxd4 {[%emt 0:04:00]} 12. Ra4 {[%emt 0:04:59]} Qe5 {[%emt 0:04:33][%cal Rd5e4]} 13. f4 {[%emt 0:13:39]} Qc7 {[%emt 0:01:05]} 14. e5 {[%emt 0:00:35]} Nd7 {[%emt 0:00:43]} 15. d4 {[%emt 0:00:24]} Nb8 {[%emt 0:00:41]} 16. Nc3 {[%emt 0:02:25][%cal Bb1c3,Bc3a4,Ba4b6][%mdl 32]} Bd7 {[%emt 0:00:32]} 17. f5 {[%emt 0:08:05][%cal Of5e6] Black must now prevent fxe6!} Bxa4 {[%emt 0:04:50]} ({Black should play} 17... Nc6 $14) 18. Nxa4 {[%emt 0:01:59]} Nc6 $2 {[%emt 0:00:15] [#] This move loses the game for Black.} (18... Nd7 $16) 19. fxe6 $18 {[%emt 0:01:26]} fxe6 {[%emt 0:07:00][%cal Oe8c8]} 20. Nb6 {[%emt 0:02:33]} Rc8 {[%emt 0:05:05]} (20... Rb8 21. Bd3 Nxe5) 21. Bh5+ {[%emt 0:01:14]} g6 {[%emt 0:00:18]} 22. Qg4 {[%emt 0:00:42]} Nxd4 {[%emt 0:01:00] [#]} 23. Bxg6+ $1 {[%emt 0:00:35] White mates.} (23. Qxd4 $2 {loses.} Bc5 (23... gxh5 24. Qh4 $11) 24. Be3 Bxd4 $19) 23... hxg6 {[%emt 0:00:31]} 24. Qxg6+ {[%emt 0:00:38]} (24. Qxd4 $2 {too greedy.} Bc5 25. Be3 Bxd4 $19) 24... Kd8 {[%emt 0:00:15]} 25. Rxf8+ $1 {[%emt 0:07:19]} Rxf8 {[%emt 0:00:31]} 26. Bg5+ {[%emt 0:00:00]} Qe7 {[%emt 0:00:43]} 27. Bxe7+ {[%emt 0:00:00]} Kxe7 {[%emt 0:00:05]} 28. Qg7+ {[%emt 0:00:00]} Rf7 {[%emt 0:00:26]} 29. Nxc8+ {[%emt 0:00:00] Weighted Error Value: White=0.02 (flawless) /Black=0.66.  Mistake:       	---       	Black=4      Inaccurate:     	White=1     	Black=1      OK:         	White=9     	Black=5      Best:        	White=2     	---} 1-0